bitfinex/quotes_ETHUSD_20240630
["timestamp","ask_amount","ask_price","bid_price","bid_amount"]
[1719708190366,0.07568073,3392.1,3392.0,11.7121]
[1719708190561,19.34122581,3392.5,3392.0,11.7121]
[1719708190789,19.34122581,3392.5,3392.4,0.855]
[1719708191366,19.34122581,3392.5,3392.1,3.0]
[1719708191579,26.65652581,3392.5,3392.4,0.855]
[1719708195609,26.72474159,3392.5,3392.4,0.855]
[1719708198793,19.40944159,3392.5,3392.4,0.855]
[1719708205880,19.35800777,3392.5,3392.4,8.7055]
[1719708206089,16.69065434,3392.5,3392.4,8.7055]
[1719708206618,16.69065434,3392.5,3392.4,11.7055]
[1719708206914,0.06821578,3392.5,3392.4,14.07163875]
[1719708207323,7.447916,3393.1,3392.4,14.07163875]
[1719708207531,7.447916,3393.1,3393.0,0.855]
[1719708208301,7.447916,3393.1,3392.5,3.55]
[1719708208508,7.447916,3393.1,3393.0,0.855]
[1719708210611,7.51407665,3393.1,3393.0,0.855]
[1719708211197,0.18407665,3393.1,3393.0,0.855]
[1719708214034,0.18407665,3393.1,3392.9,0.855]
[1719708215618,0.18407665,3393.1,3392.5,3.55]
[1719708215820,0.18407665,3393.1,3392.9,0.855]
[1719708217233,16.80651521,3393.1,3392.9,0.855]
[1719708220176,16.80651521,3393.1,3392.5,3.0]
[1719708220374,16.80651521,3393.1,3392.7,0.855]
[1719708220829,16.80651521,3393.1,3393.0,0.855]
[1719708224535,16.68859921,3393.1,3393.0,0.855]
[1719708224734,16.67984921,3393.1,3393.0,0.855]
[1719708224932,16.72597008,3393.1,3393.0,0.855]
[1719708225829,16.72597008,3393.1,3392.6,9.8875]
[1719708226341,16.72597008,3393.1,3393.0,0.855]
[1719708228496,16.72597008,3393.1,3392.6,3.0]
[1719708228641,16.72597008,3393.1,3393.0,0.855]
[1719708229053,0.10353152,3393.1,3393.0,0.855]
[1719708233603,7.43393152,3393.1,3392.9,0.855]
[1719708236998,7.43393152,3393.1,3392.4,4.180664]
[1719708236999,9.84251829,3393.1,3392.4,4.180664]
[1719708237173,7.4702,3393.0,3392.4,0.855]
[1719708237376,0.06155249,3392.9,3392.4,0.855]
[1719708237763,0.10280249,3392.9,3392.4,0.855]
[1719708241102,16.72524105,3392.9,3392.4,0.855]
[1719708244480,16.72524105,3392.9,3392.6,0.855]
[1719708244682,16.72524105,3392.9,3392.3,4.180716]
[1719708244888,16.72524105,3392.9,3392.4,0.855]
[1719708245114,16.72524105,3392.9,3392.4,3.855]
[1719708245298,16.72524105,3392.9,3392.6,0.855]
[1719708247506,16.72524105,3392.9,3392.4,0.855]
[1719708249218,23.81144105,3392.9,3392.4,0.855]
[1719708249418,23.81144105,3392.9,3392.5,0.55]
[1719708250185,23.81144105,3392.9,3392.4,3.0]
[1719708250420,23.81144105,3392.9,3392.3,2.035716]
[1719708252996,7.18900249,3392.9,3392.3,2.035716]
[1719708257541,0.10280249,3392.9,3392.3,2.09467269]
[1719708257838,0.10280249,3392.9,3392.5,0.855]
[1719708260561,0.10280249,3392.9,3392.5,8.3224]
[1719708260729,0.10280249,3392.9,3392.6,3.0]
[1719708263634,0.10280249,3392.9,3392.4,3.55]
[1719708265025,7.1103,3392.8,3392.4,3.0]
[1719708265328,8.84325101,3392.8,3392.0,0.855]
[1719708265524,7.17072691,3392.8,3392.2,1.180748]
[1719708266045,7.21197691,3392.8,3392.2,1.180748]
[1719708269225,7.21197691,3392.8,3392.2,2.035748]
[1719708271779,0.10167691,3392.8,3392.4,0.855]
[1719708276794,16.72411547,3392.8,3392.4,0.855]
[1719708282708,0.10167691,3392.8,3392.4,0.855]
[1719708286895,7.0844,3392.7,3392.4,0.855]
[1719708287118,7.14478805,3392.7,3392.4,0.855]
[1719708287323,7.18603805,3392.7,3392.3,3.55]
[1719708288314,7.18603805,3392.7,3392.3,3.0]
[1719708288492,7.18603805,3392.7,3392.4,3.0]
[1719708288825,7.18603805,3392.7,3392.2,1.180748]
[1719708296099,7.18603805,3392.7,3392.3,0.855]
[1719708298336,0.10163805,3392.7,3392.5,0.855]
[1719708301333,6.91583805,3392.7,3392.3,0.855]
[1719708301636,6.91583805,3392.7,3392.4,0.55]
[1719708302221,6.91583805,3392.7,3392.3,3.0]
[1719708302534,6.91583805,3392.7,3392.2,2.035748]
[1719708303750,6.91583805,3392.7,3392.0,3.0]
[1719708303916,6.834,3392.6,3391.8,0.855]
[1719708304252,6.89415609,3392.6,3392.0,1.180814]
[1719708304412,6.93540609,3392.6,3392.0,1.180814]
[1719708304609,8.5694467,3392.6,3392.0,1.180814]
[1719708304839,8.5694467,3392.6,3391.0,6.9665]
[1719708304840,6.834,3392.3,3391.0,6.9665]
[1719708305039,6.834,3392.2,3391.5,1.181001]
[1719708305225,8.12075359,3392.2,3391.5,1.181001]
[1719708305426,8.16200359,3392.2,3391.5,1.181001]
[1719708305856,8.16200359,3392.2,3391.3,0.855]
[1719708306051,6.834,3392.1,3391.1,0.855]
[1719708306242,8.46870036,3392.1,3391.1,0.855]
[1719708306443,6.834,3391.9,3391.3,0.855]
[1719708306845,0.05988284,3391.8,3391.3,2.036051]
[1719708307445,0.10113284,3391.8,3391.3,2.036051]
[1719708309537,16.7235714,3391.8,3391.5,0.855]
[1719708314964,16.7235714,3391.8,3391.7,0.855]
[1719708315189,16.62243856,3392.0,3391.7,0.855]
[1719708315395,16.62243856,3392.0,3391.4,7.02546625]
[1719708315396,7.33,3392.3,3391.9,7.8215]
[1719708315600,7.33,3392.3,3392.2,0.855]
[1719708318458,16.62243856,3392.4,3392.2,0.855]
[1719708318761,16.62243856,3392.4,3392.3,0.855]
[1719708321997,16.62243856,3392.4,3392.3,1.72379208]
[1719708324094,16.67872467,3392.4,3392.3,1.72379208]
[1719708324597,0.05628611,3392.4,3392.3,1.72379208]
[1719708324894,16.62243856,3392.8,3392.3,1.72379208]
[1719708325096,16.62243856,3392.8,3392.7,0.855]
[1719708330703,16.67886979,3392.8,3392.7,0.855]
[1719708343429,15.94541682,3392.8,3392.7,0.855]
[1719708347836,15.94541682,3392.8,3392.4,4.180675]
[1719708348167,7.2297,3392.7,3392.5,3.55]
[1719708348335,23.11868559,3392.7,3392.6,0.855]
[1719708353850,15.88898559,3392.7,3392.6,0.855]
[1719708354351,15.88898559,3392.8,3392.6,0.855]
[1719708354564,15.88898559,3392.8,3392.7,0.855]
[1719708357613,22.88198559,3392.8,3392.7,0.855]
[1719708357815,25.17018415,3392.8,3392.7,0.855]
[1719708359821,22.88198559,3392.8,3392.7,0.855]
[1719708360232,6.993,3392.8,3392.7,0.855]
[1719708360553,7.04868809,3392.8,3392.7,0.855]
[1719708363251,0.05568809,3392.8,3392.7,0.855]
[1719708363651,7.0527,3393.0,3392.7,0.855]
[1719708363956,7.0527,3393.0,3392.9,0.855]
[1719708364451,9.34686856,3393.0,3392.9,0.855]
[1719708364651,9.34686856,3393.0,3392.7,0.855]
[1719708364857,7.0527,3393.0,3392.7,0.855]
[1719708368332,7.0527,3393.0,3392.2,1.180752]
[1719708368533,7.0527,3393.0,3392.8,0.855]
[1719708373347,7.0527,3393.0,3392.3,3.55]
[1719708373562,7.0527,3393.0,3392.8,0.855]
[1719708373883,2.29416856,3392.9,3392.8,0.855]
[1719708374192,7.0527,3393.0,3392.8,0.855]
[1719708375578,0.05444505,3392.9,3392.8,0.855]
[1719708378053,15.94343064,3392.9,3392.8,0.855]
[1719708380935,15.94343064,3392.9,3392.3,3.55]
[1719708380936,6.8672,3392.8,3392.3,3.0]
[1719708381222,0.05435561,3392.7,3392.5,0.855]
[1719708384115,15.9433412,3392.7,3392.5,0.855]
[1719708390137,0.05435561,3392.7,3392.5,0.855]
[1719708390533,15.88898559,3392.9,3392.5,0.855]
[1719708390728,15.88898559,3392.9,3392.1,4.1808]
[1719708390928,15.88898559,3392.9,3392.7,0.855]
[1719708391240,0.05442289,3392.8,3392.5,0.855]
[1719708395920,15.94340848,3392.8,3392.5,0.855]
[1719708397147,15.94340848,3392.8,3392.2,1.405]
[1719708402041,0.05442289,3392.8,3392.2,1.405]
[1719708406327,0.05442289,3392.8,3392.2,0.55]
[1719708406530,0.05442289,3392.8,3392.1,3.0]
[1719708406531,7.0256,3392.6,3392.1,3.0]
[1719708406842,0.05387974,3392.5,3392.0,1.180829]
[1719708408353,7.0256,3392.4,3391.7,3.0]
[1719708408554,7.07944475,3392.4,3391.8,1.405]
[1719708408758,7.07944475,3392.4,3391.8,2.585878]
[1719708408959,7.07944475,3392.4,3391.9,3.0]
[1719708410455,7.0256,3392.3,3391.9,3.0]
[1719708410757,0.05369467,3392.2,3391.8,2.585878]
[1719708410967,0.05369467,3392.2,3391.9,3.0]
[1719708411254,0.05369467,3392.2,3391.8,1.405]
[1719708411438,0.05369467,3392.2,3391.8,4.405]
[1719708420572,0.05369467,3392.2,3392.0,0.855]
[1719708421868,7.2342,3392.5,3392.0,0.855]
[1719708422066,7.2342,3392.5,3392.2,0.855]
[1719708424441,15.88898559,3392.6,3392.2,0.855]
[1719708424869,15.88898559,3392.6,3391.8,10.3441]
[1719708424870,18.62527481,3392.6,3391.8,3.55]
[1719708425045,7.2342,3392.5,3391.8,1.405]
[1719708425247,2.58594748,3392.4,3391.8,4.405]
[1719708425573,7.2342,3392.5,3391.8,4.405]
[1719708426875,7.2342,3392.5,3392.0,0.855]
[1719708430385,15.88898559,3392.6,3392.3,0.855]
[1719708431860,7.33,3392.9,3392.3,0.855]
[1719708431861,15.88898559,3392.8,3392.3,0.855]
[1719708433467,15.88898559,3392.8,3392.4,0.55]
[1719708433662,15.88898559,3392.8,3392.5,6.7941]
[1719708433872,15.88898559,3392.8,3392.7,0.855]
[1719708435680,15.94068236,3392.8,3392.7,0.855]
[1719708437289,15.94068236,3392.8,3392.6,3.0]
[1719708437503,6.9612,3392.7,3392.4,0.55]
[1719708437829,0.0516268,3392.6,3392.4,0.55]
[1719708438024,0.0516268,3392.6,3392.2,0.855]
[1719708438233,0.0516268,3392.6,3392.0,3.0]
[1719708438234,1.60727354,3392.6,3392.1,0.855]
[1719708438575,6.9612,3392.5,3391.8,3.0]
[1719708438801,0.05155682,3392.4,3391.7,4.180932]
[1719708439102,0.05155682,3392.4,3391.7,5.035932]
[1719708439917,0.05155682,3392.4,3391.7,2.035932]
[1719708440166,6.9612,3392.3,3391.4,7.4643]
[1719708440279,22.85018559,3392.3,3391.6,0.855]
[1719708440477,0.05144937,3392.2,3391.6,0.855]
[1719708443599,15.94043496,3392.2,3391.6,0.855]
[1719708443937,18.94497181,3392.2,3391.6,0.855]
[1719708450256,18.94497181,3392.2,3391.2,3.0]
[1719708450257,6.9612,3392.1,3391.2,3.0]
[1719708450541,18.94497181,3392.2,3390.4,2.06461]
[1719708450542,6.9612,3391.8,3390.7,0.29836458]
[1719708450768,22.85018559,3391.8,3391.1,0.855]
[1719708450911,0.05115084,3391.7,3391.1,0.855]
[1719708451411,15.94013643,3391.7,3390.7,1.181206]
[1719708451717,18.94467328,3391.7,3390.7,1.181206]
[1719708451919,18.94467328,3391.7,3391.0,0.855]
[1719708452108,6.9612,3391.6,3391.0,0.855]
[1719708452309,6.9612,3391.6,3390.7,4.181206]
[1719708452508,0.05099268,3391.5,3391.0,0.855]
[1719708455529,15.93997827,3391.5,3391.0,0.855]
[1719708465177,15.93997827,3391.5,3390.7,1.181206]
[1719708465178,2.4317,3391.4,3390.7,1.181206]
[1719708465390,2.4317,3391.2,3390.7,1.181206]
[1719708465793,2.4317,3391.0,3390.7,1.181206]
[1719708465985,18.32068559,3391.0,3390.3,0.855]
[1719708466183,0.0489131,3390.9,3390.3,0.855]
[1719708467161,0.0489131,3390.9,3390.4,0.55]
[1719708467785,0.0489131,3390.9,3390.5,0.855]
[1719708470498,15.93789869,3390.9,3390.5,0.855]
[1719708472211,15.93789869,3390.9,3390.4,0.55]
[1719708472507,15.93789869,3390.9,3390.3,0.855]
[1719708475591,2.3804,3390.8,3390.0,3.0]
[1719708475787,2.3804,3390.8,3390.3,0.855]
[1719708475788,18.26938559,3390.8,3390.3,0.855]
[1719708475979,0.04875005,3390.7,3390.3,0.855]
[1719708476487,0.04861158,3390.6,3390.3,0.855]
[1719708476693,18.26938559,3390.8,3390.3,0.855]
[1719708476898,0.04724943,3390.7,3390.3,0.855]
[1719708477099,2.3804,3390.6,3390.1,0.55]
[1719708477417,0.04717937,3390.5,3389.9,0.55]
[1719708477575,0.04717937,3390.5,3390.2,0.855]
[1719708478819,0.04717937,3390.5,3389.8,0.55]
[1719708479037,0.04717937,3390.5,3390.2,0.855]
[1719708479232,0.04717937,3390.5,3389.7,0.55]
[1719708479379,15.93616496,3390.5,3390.1,0.855]
[1719708479586,17.76782146,3390.5,3390.1,0.855]
[1719708480284,15.93616496,3390.5,3390.1,0.855]
[1719708483413,15.93616496,3390.5,3389.8,4.181572]
[1719708483596,2.487,3390.4,3389.7,1.405]
[1719708484007,0.04706025,3390.3,3389.7,1.405]
[1719708484200,0.04706025,3390.3,3389.7,4.405]
[1719708484717,0.04706025,3390.3,3389.7,3.55]
[1719708485021,2.487,3390.2,3389.8,3.855]
[1719708485220,2.487,3390.2,3389.8,0.855]
[1719708485383,0.04699017,3390.1,3389.8,0.855]
[1719708486323,0.04699017,3390.1,3389.7,0.55]
[1719708486627,0.04699017,3390.1,3389.8,0.855]
[1719708487722,0.04699017,3390.1,3389.7,0.55]
[1719708487927,0.04699017,3390.1,3389.7,1.405]
[1719708488295,0.30038919,3390.1,3389.6,3.0]
[1719708488490,0.30038919,3390.1,3389.8,0.855]
[1719708488696,0.04699017,3390.1,3389.8,0.855]
[1719708491731,2.487,3390.4,3389.8,0.855]
[1719708491930,0.04705767,3390.3,3389.8,0.855]
[1719708493398,2.487,3390.2,3389.8,0.855]
[1719708493822,0.04698759,3390.1,3389.8,0.855]
[1719708494726,0.04698759,3390.1,3389.4,1.181718]
[1719708495036,0.04698759,3390.1,3389.8,0.855]
[1719708497212,0.30038635,3390.1,3389.8,0.855]
[1719708498103,0.30038635,3390.1,3389.6,0.855]
[1719708499226,0.04698759,3390.1,3389.6,0.855]
[1719708502316,0.04698759,3390.1,3389.8,0.855]
[1719708504841,0.04698759,3390.1,3389.3,4.181744]
[1719708505012,2.3763,3390.0,3389.5,0.855]
[1719708505360,0.04514881,3389.9,3389.5,0.855]
[1719708509444,2.3763,3389.8,3389.5,0.855]
[1719708509844,0.04501359,3389.7,3389.5,0.855]
[1719708510218,0.04501359,3389.7,3389.2,1.18178]
[1719708510219,2.3763,3389.8,3389.4,0.855]
[1719708510424,0.04497854,3389.6,3389.4,0.855]
[1719708510611,2.3763,3389.8,3389.4,0.855]
[1719708510811,0.04492539,3389.5,3389.4,0.855]
[1719708511015,2.3763,3389.8,3389.4,0.855]
[1719708511223,0.04492539,3389.5,3389.4,0.855]
[1719708511426,2.3763,3389.8,3389.4,0.855]
[1719708511630,0.04492539,3389.5,3389.4,0.855]
[1719708511836,2.3763,3389.8,3389.4,0.855]
[1719708512158,0.04499549,3389.7,3389.4,0.855]
[1719708512360,0.04499549,3389.7,3389.6,0.855]
[1719708512556,2.3763,3389.8,3389.6,0.855]
[1719708512765,0.04499549,3389.7,3389.6,0.855]
[1719708513158,2.3763,3390.0,3389.6,0.855]
[1719708513458,0.04502383,3389.9,3389.6,0.855]
[1719708514567,15.88898559,3390.5,3389.8,0.855]
[1719708514737,15.88898559,3390.5,3390.4,0.855]
[1719708514930,19.82257425,3390.5,3390.0,3.0]
[1719708515130,18.26528559,3390.5,3390.2,0.855]
[1719708515557,18.26528559,3390.5,3390.1,0.855]
[1719708515758,2.55952856,3390.4,3389.4,3.0]
[1719708515958,2.55952856,3390.4,3390.0,0.855]
[1719708516739,2.3142,3390.3,3389.5,0.55]
[1719708517059,2.3142,3390.3,3389.9,0.855]
[1719708517060,5.12968142,3390.3,3389.9,0.855]
[1719708517776,5.12968142,3390.3,3390.1,0.855]
[1719708521058,15.88898559,3390.5,3390.1,0.855]
[1719708521059,18.34318559,3390.5,3390.1,0.855]
[1719708521229,18.34318559,3390.5,3390.4,0.855]
[1719708522277,18.38225082,3390.5,3390.4,0.855]
[1719708525893,18.38225082,3390.5,3390.2,0.855]
[1719708526038,20.2204759,3390.5,3390.2,0.855]
[1719708527182,4.33149031,3390.5,3390.2,0.855]
[1719708529041,4.33149031,3390.5,3389.6,3.0]
[1719708529239,4.33149031,3390.5,3389.9,0.855]
[1719708529492,0.43314903,3390.4,3390.1,0.855]
[1719708529794,0.03776135,3390.3,3390.1,0.855]
[1719708534699,2.4542,3390.5,3390.1,0.855]
[1719708534860,0.03635616,3390.2,3389.6,3.0]
[1719708535065,2.4542,3390.6,3390.1,0.855]
[1719708535307,2.4542,3390.6,3390.3,0.855]
[1719708541503,2.4542,3390.6,3389.8,3.0]
[1719708541699,2.4542,3390.6,3390.1,0.855]
[1719708542023,0.24542,3390.5,3389.9,0.855]
[1719708543417,2.4542,3390.6,3389.9,0.855]
[1719708548910,0.03651186,3390.5,3389.9,0.855]
[1719708550132,0.03651186,3390.5,3389.8,3.0]
[1719708550342,0.03651186,3390.5,3389.9,0.855]
[1719708550700,2.4542,3390.6,3389.9,0.855]
[1719708551002,0.24542,3390.5,3389.9,0.855]
[1719708553439,2.3447,3390.4,3389.9,0.855]
[1719708553806,0.0364405,3390.3,3389.9,0.855]
[1719708555741,0.0364405,3390.3,3389.6,3.0]
[1719708555946,0.0364405,3390.3,3389.8,0.855]
[1719708559818,0.27455455,3390.3,3389.8,0.855]
[1719708560014,2.2518,3390.2,3389.7,0.855]
[1719708560356,0.03637042,3390.1,3389.7,0.855]
[1719708568260,2.3415,3390.0,3389.1,3.0]
[1719708568468,2.3415,3390.0,3389.5,0.855]
[1719708568655,0.42717511,3389.9,3389.5,0.855]
[1719708574883,20.35717511,3389.9,3389.5,0.855]
[1719708575568,20.35717511,3389.9,3389.7,0.855]
[1719708575569,19.96528742,3389.9,3389.7,0.855]
[1719708576754,2.4385,3389.8,3389.7,0.855]
[1719708576955,2.47373028,3389.8,3389.7,0.855]
[1719708580751,22.40373028,3389.8,3389.7,0.855]
[1719708585186,22.40373028,3389.8,3388.8,0.28265834]
[1719708585187,2.2796,3389.7,3388.8,0.28265834]
[1719708585390,0.03514071,3389.6,3389.1,0.855]
[1719708585709,0.03514071,3389.6,3389.3,0.855]
[1719708586184,0.03514071,3389.6,3389.0,2.3835]
[1719708586491,0.03514071,3389.6,3389.1,0.55]
[1719708586679,0.03514071,3389.6,3389.2,0.855]
[1719708588583,0.03514071,3389.6,3389.4,0.855]
[1719708589588,0.03514071,3389.6,3389.5,0.55]
[1719708589902,0.03514071,3389.6,3389.5,2.8921]
[1719708590271,19.93,3389.8,3389.5,5.8921]
[1719708590607,19.93,3389.8,3389.7,0.855]
[1719708590822,19.93,3389.8,3389.7,1.405]
[1719708590823,19.96387598,3389.8,3389.7,1.405]
[1719708592717,0.03387598,3389.8,3389.7,1.405]
[1719708595779,19.93,3389.9,3389.7,1.405]
[1719708595979,18.37849064,3389.9,3389.8,2.9408]
[1719708596309,18.37849064,3389.9,3389.8,5.9408]
[1719708598717,7.33,3390.4,3389.8,5.9408]
[1719708598914,25.70849064,3390.7,3390.3,0.855]
[1719708599215,25.70849064,3390.7,3390.6,0.855]
[1719708599436,18.37849064,3390.8,3390.6,0.855]
[1719708601552,2.2511,3390.7,3390.4,3.0]
[1719708601695,2.2511,3390.7,3390.6,0.855]
[1719708603455,2.28074664,3390.7,3390.6,0.855]
[1719708604304,2.28074664,3390.7,3390.1,3.0]
[1719708604501,2.28074664,3390.7,3390.6,0.855]
[1719708604743,4.14672975,3390.7,3390.6,0.855]
[1719708604949,2.28074664,3390.7,3390.6,0.855]
[1719708611827,0.02964664,3390.7,3390.6,0.855]
[1719708612029,20.62959064,3390.9,3390.6,0.855]
[1719708612257,0.02967645,3390.8,3390.6,0.855]
[1719708614028,2.82860316,3390.8,3390.1,3.0]
[1719708614332,2.82860316,3390.8,3390.6,0.855]
[1719708619868,0.02808729,3390.7,3390.6,0.855]
[1719708620350,2.30296255,3390.8,3390.6,0.855]
[1719708620668,0.02709808,3390.7,3390.6,0.855]
[1719708621236,2.30296255,3390.8,3390.6,0.855]
[1719708621438,0.02709808,3390.7,3390.6,0.855]
[1719708621638,2.30296255,3390.8,3390.6,0.855]
[1719708621839,0.02709808,3390.7,3390.6,0.855]
[1719708622039,2.30296255,3390.8,3390.6,0.855]
[1719708622373,0.02709808,3390.7,3390.6,0.855]
[1719708622665,20.68145319,3390.8,3390.6,0.855]
[1719708622842,0.02709808,3390.7,3390.6,0.855]
[1719708623037,18.37849064,3390.8,3390.6,0.855]
[1719708623236,0.02709808,3390.7,3390.6,0.855]
[1719708623457,18.37849064,3390.8,3390.6,0.855]
[1719708623653,0.02709678,3390.7,3390.6,0.855]
[1719708623856,21.1744497,3390.8,3390.6,0.855]
[1719708624056,0.02709678,3390.7,3390.6,0.855]
[1719708624264,21.1744497,3390.8,3390.6,0.855]
[1719708624463,0.02709678,3390.7,3390.6,0.855]
[1719708624660,21.1744497,3390.8,3390.6,0.855]
[1719708624868,0.02709678,3390.7,3390.6,0.855]
[1719708625080,21.1744497,3390.8,3390.6,0.855]
[1719708625441,0.02709678,3390.7,3390.6,0.855]
[1719708625642,21.1744497,3390.8,3390.6,0.855]
[1719708625841,0.02709678,3390.7,3390.6,0.855]
[1719708626042,21.1744497,3390.8,3390.6,0.855]
[1719708626242,0.02709678,3390.7,3390.6,0.855]
[1719708626463,21.1744497,3390.8,3390.6,0.855]
[1719708626664,0.02670825,3390.7,3390.6,0.855]
[1719708626849,21.1744497,3390.8,3390.6,0.855]
[1719708627850,2.34255497,3390.7,3390.1,3.0]
[1719708628053,2.34255497,3390.7,3390.1,0.855]
[1719708628054,2.3738,3390.6,3390.1,0.855]
[1719708631163,2.3738,3390.6,3389.9,3.0]
[1719708631363,2.3738,3390.4,3389.5,2.4992]
[1719708631563,2.3738,3390.4,3389.5,3.680873]
[1719708631767,2.3738,3390.4,3389.9,0.855]
[1719708632142,0.06278598,3390.3,3389.9,0.855]
[1719708635477,0.06278598,3390.3,3390.2,0.855]
[1719708637274,2.14429364,3390.3,3390.2,0.855]
[1719708639678,2.14429364,3390.3,3389.6,3.0]
[1719708639679,2.4294,3390.2,3389.6,3.0]
[1719708639856,0.0626517,3390.1,3389.8,0.855]
[1719708640390,0.45735594,3390.0,3389.0,2.4174]
[1719708640553,18.83584658,3390.0,3389.7,0.855]
[1719708640885,0.06254996,3389.9,3389.7,0.855]
[1719708645353,2.3811,3389.8,3389.2,4.1818]
[1719708645555,2.3811,3389.8,3389.7,0.855]
[1719708646349,20.75959064,3389.8,3389.7,0.855]
[1719708646963,18.37849064,3389.8,3389.7,0.855]
[1719708651675,18.37849064,3389.8,3389.7,1.405]
[1719708652386,18.37849064,3390.0,3389.7,1.405]
[1719708652688,18.37849064,3390.0,3389.9,0.855]
[1719708655694,18.37849064,3390.0,3389.9,3.855]
[1719708656778,18.37849064,3390.0,3389.9,0.855]
[1719708660777,18.44102506,3390.0,3389.9,0.855]
[1719708664421,0.06253442,3390.0,3389.9,0.855]
[1719708664713,18.37849064,3390.4,3389.9,0.855]
[1719708664918,2.87159529,3390.3,3389.9,0.855]
[1719708670291,18.44112687,3390.3,3389.9,0.855]
[1719708673125,18.44112687,3390.3,3389.8,1.405]
[1719708676302,0.06263623,3390.3,3389.8,1.405]
[1719708682108,18.44112687,3390.3,3389.8,1.405]
[1719708685337,21.25634956,3390.3,3389.7,3.0]
[1719708685540,21.25634956,3390.3,3389.8,3.855]
[1719708685541,2.3583,3390.2,3389.8,3.855]
[1719708685705,2.3583,3390.2,3389.8,0.855]
[1719708685907,2.42243172,3390.1,3389.8,0.855]
[1719708687414,0.06096676,3390.1,3389.8,0.855]
[1719708688123,18.4394574,3390.1,3389.8,0.855]
[1719708688532,18.4394574,3390.1,3389.3,3.0]
[1719708688839,18.4394574,3390.1,3389.8,0.855]
[1719708692718,18.4394574,3390.1,3389.4,0.55]
[1719708692918,18.4394574,3390.1,3389.7,0.855]
[1719708693117,20.51923314,3390.1,3389.7,0.855]
[1719708693918,20.51923314,3390.1,3389.3,3.0]
[1719708694131,18.4394574,3390.1,3389.8,0.855]
[1719708763273,18.04544055,3390.1,3389.8,0.855]
[1719708763582,0.05000751,3390.0,3389.8,0.855]
[1719708765576,18.09544806,3390.0,3389.8,0.855]
[1719708771679,0.05000751,3390.0,3389.8,0.855]
[1719708777577,18.09544806,3390.0,3389.8,0.855]
[1719708783514,0.05000751,3390.0,3389.8,0.855]
[1719708783807,0.05000751,3390.0,3389.9,2.4968]
[1719708783982,0.05000751,3390.0,3389.9,8.11175]
[1719708784172,0.05000751,3390.0,3389.9,6.0468]
[1719708789514,18.09544806,3390.0,3389.9,6.0468]
[1719708795520,0.05000751,3390.0,3389.9,6.0468]
[1719708795916,2.3424,3390.6,3389.9,6.0468]
[1719708796135,2.3424,3390.6,3390.5,0.855]
[1719708796307,2.3424,3390.6,3390.5,1.405]
[1719708799623,2.3424,3390.6,3390.0,3.0]
[1719708799793,2.3424,3390.6,3390.1,1.405]
[1719708800517,2.50954,3390.5,3390.1,1.405]
[1719708800700,2.2753,3390.5,3390.1,1.405]
[1719708801813,2.2753,3390.5,3390.3,0.855]
[1719708807838,2.3773,3391.2,3390.3,0.855]
[1719708808002,2.61503,3391.1,3390.5,0.855]
[1719708808203,2.3773,3391.1,3390.5,0.855]
[1719708810714,2.42307288,3391.0,3390.5,0.855]
[1719708821429,2.42307288,3391.0,3390.3,0.855]
[1719708821645,2.3677,3390.8,3390.3,0.855]
[1719708821843,0.0450836,3390.7,3390.3,0.855]
[1719708822042,2.3677,3390.6,3390.3,0.855]
[1719708822378,0.04500921,3390.5,3390.3,0.855]
[1719708823260,2.3677,3390.4,3389.9,3.0]
[1719708823437,2.3677,3390.4,3390.1,0.855]
[1719708823632,2.3677,3390.4,3390.3,0.855]
[1719708825639,2.41267397,3390.4,3390.3,0.855]
[1719708845560,0.04497397,3390.4,3390.3,0.855]
[1719708845766,0.04497397,3390.4,3390.3,4.405]
[1719708845976,2.2874,3391.0,3390.3,4.405]
[1719708846283,2.2874,3391.0,3390.5,0.855]
[1719708846491,0.04354726,3390.9,3390.5,0.855]
[1719708848701,0.0435395,3390.8,3390.5,0.855]
[1719708849070,2.2874,3391.0,3390.5,0.855]
[1719708849265,0.04350558,3390.7,3390.5,0.855]
[1719708849489,2.2874,3391.0,3390.5,0.855]
[1719708850007,0.04357343,3390.9,3390.5,0.855]
[1719708850791,0.51681592,3390.9,3390.5,0.855]
[1719708850990,0.79723751,3390.9,3390.5,0.855]
[1719708853676,0.79726379,3390.9,3390.5,0.855]
[1719708855413,2.4883,3390.8,3390.3,3.0]
[1719708855602,2.4883,3390.8,3390.2,0.855]
[1719708855783,2.4704,3390.6,3390.2,0.855]
[1719708856183,0.04343772,3390.5,3390.2,0.855]
[1719708868329,0.04343772,3390.5,3390.4,0.855]
[1719708868996,2.3127,3390.8,3390.4,0.855]
[1719708869326,2.3127,3390.8,3390.6,0.855]
[1719708869327,0.23127,3390.7,3390.6,0.855]
[1719708869529,0.27480351,3390.7,3390.6,0.855]
[1719708870498,2.3127,3390.6,3390.2,3.0]
[1719708870729,0.4735417,3390.5,3389.9,0.855]
[1719708870929,0.04353238,3390.5,3389.9,0.855]
[1719708871119,0.51706415,3390.5,3389.9,0.855]
[1719708871316,2.3127,3390.4,3389.9,0.855]
[1719708871622,0.23127,3390.3,3389.9,0.855]
[1719708871799,0.04346451,3390.3,3389.9,0.855]
[1719708872512,0.04346451,3390.3,3389.8,3.0]
[1719708872710,2.3127,3390.2,3389.6,0.855]
[1719708872955,2.3127,3390.2,3389.2,2.3626]